bitfinex-derivatives/quotes_ETHF0:USTF0_20260209
["timestamp","ask_amount","ask_price","bid_price","bid_amount"]
[1770667665085,0.53355221,2139.4,2138.6,0.57588314]
[1770667665285,0.53355221,2139.8,2138.6,0.57588314]
[1770667665484,0.53355221,2139.5,2138.6,0.57588314]
[1770667667783,3.34169757,2139.3,2138.6,0.57588314]
[1770667667987,0.53355221,2139.3,2138.6,0.57588314]
[1770667668285,2.80814536,2139.2,2138.7,0.57588314]
[1770667668484,0.53355221,2139.5,2138.7,0.57588314]
[1770667668685,3.34169757,2139.4,2138.7,0.57588314]
[1770667668885,0.53355221,2139.4,2138.7,0.57588314]
[1770667669285,2.80814536,2139.3,2138.7,0.57588314]
[1770667669490,3.34169757,2139.3,2138.7,0.57588314]
[1770667670488,3.33207353,2139.0,2138.5,0.56408578]
[1770667670682,0.52997737,2139.0,2138.5,0.56408578]
[1770667671085,2.80814536,2138.9,2138.5,0.56408578]
[1770667672286,3.33207353,2138.9,2138.5,0.56408578]
[1770667672488,2.80814536,2138.9,2138.5,0.56408578]
[1770667673386,3.33207353,2138.9,2138.5,0.52501947]
[1770667674290,0.52392817,2138.8,2138.5,0.52501947]
[1770667674488,2.80814536,2138.9,2138.5,0.52501947]
[1770667674693,3.33207353,2138.9,2138.5,0.52501947]
[1770667676198,2.69964168,2138.6,2138.5,0.52501947]
[1770667676589,0.52392817,2138.9,2138.5,0.52501947]
[1770667676787,0.52997737,2139.0,2138.5,0.52501947]
[1770667677698,0.52392817,2139.4,2138.6,0.56408578]
[1770667678895,0.52948262,2139.4,2138.6,0.56408578]
[1770667680997,0.52948262,2139.4,2138.4,2.75109437]
[1770667681193,0.52948262,2139.4,2138.2,5.54961648]
[1770667681194,0.52392817,2139.3,2138.2,0.56408578]
[1770667681492,0.52392817,2139.2,2138.2,0.56408578]
[1770667685100,0.52948262,2139.4,2138.4,0.56408578]
[1770667685303,0.52948262,2139.4,2138.5,0.56408578]
[1770667685597,0.52948262,2139.4,2138.6,0.56408578]
[1770667687895,0.52948262,2139.4,2138.4,2.75541847]
[1770667688091,0.52948262,2139.4,2138.3,0.56408578]
[1770667689194,0.52948262,2139.4,2138.4,0.56408578]
[1770667693899,0.52948262,2139.4,2138.5,0.56408578]
[1770667696000,0.52948262,2139.4,2138.3,3.31950425]
[1770667696208,0.52948262,2139.4,2138.4,0.56408578]
[1770667700306,0.52497597,2139.3,2138.4,0.56408578]
[1770667700514,0.52497597,2139.2,2138.3,0.54173125]
[1770667700712,0.52497597,2139.2,2138.4,0.54173125]
[1770667702410,0.52497597,2139.2,2138.2,2.75541847]
[1770667702611,0.52497597,2139.1,2138.2,0.54173125]
[1770667706618,0.52497597,2139.1,2138.3,0.54173125]
[1770667706820,0.52497597,2139.2,2138.5,0.54173125]
[1770667707119,4.45e-06,2139.4,2139.1,0.54173125]
[1770667707321,0.52497597,2139.8,2139.1,0.54173125]
[1770667708419,0.53085289,2139.8,2139.1,0.54173125]
[1770667715823,0.53085289,2139.8,2138.8,0.54173125]
[1770667719935,2.79284633,2140.1,2139.4,0.54173125]
[1770667720233,2.79284633,2140.1,2139.3,0.23386]
[1770667720234,0.58141465,2142.5,2141.0,0.23367]
[1770667720424,0.58141465,2142.5,2140.5,5.74985]
[1770667720425,0.58141465,2142.5,2141.1,10.325]
[1770667720624,0.52497597,2142.6,2141.0,0.54173125]
[1770667720827,0.52497597,2142.3,2140.9,0.54173125]
[1770667721028,0.5286635,2142.3,2140.9,0.54625992]
[1770667721331,0.5286635,2142.3,2141.0,0.54173125]
[1770667721632,0.5286635,2142.3,2141.3,0.54173125]
[1770667721830,0.00368753,2142.3,2141.4,0.54173125]
[1770667722032,0.00368753,2142.3,2141.4,4.85448696]
[1770667722229,0.00368753,2142.3,2141.5,5.7472]
[1770667722533,0.52497597,2142.7,2141.6,0.54173125]
[1770667723230,6.10986885,2142.6,2141.7,0.54173125]
[1770667723531,0.52497597,2142.5,2141.7,0.54173125]
[1770667723829,0.52497597,2142.4,2141.7,0.54173125]
[1770667724926,0.52497597,2142.4,2141.3,19.212]
[1770667724927,0.52497597,2142.2,2141.5,0.54173125]
[1770667726124,5.58489288,2142.2,2141.5,0.54173125]
[1770667726429,0.52497597,2142.3,2141.5,0.54173125]
[1770667727228,0.52497597,2142.5,2141.5,0.54173125]
[1770667727733,0.00503884,2142.6,2141.7,0.54173125]
[1770667728834,0.52497597,2143.1,2141.7,0.54173125]
[1770667729634,8.9421361,2144.2,2141.7,0.54173125]
[1770667729635,0.56046978,2142.9,2141.7,0.54173125]
[1770667729828,0.56400861,2142.9,2141.7,0.54173125]
[1770667730136,0.56046978,2142.8,2141.7,0.54173125]
[1770667730430,0.56046978,2142.8,2141.9,0.54508051]
[1770667730635,0.00353883,2142.9,2142.1,0.54508051]
[1770667730839,0.56046978,2144.1,2142.3,0.54508051]
[1770667731026,0.56046978,2144.1,2142.5,0.54508051]
[1770667731226,0.56046978,2144.1,2142.7,0.54508051]
[1770667731433,0.56046978,2144.0,2142.9,0.54508051]
[1770667731938,0.56046978,2143.9,2142.9,0.54920287]
[1770667733040,0.56046978,2146.3,2144.6,0.54508051]
[1770667733332,0.56046978,2146.3,2144.3,5.73963]
[1770667733333,6.83449628,2148.2,2145.9,5.96855]
[1770667733535,0.56046978,2148.9,2146.7,4.702]
[1770667733729,0.56046978,2148.9,2145.9,0.23314]
[1770667733730,5.72954,2148.1,2146.0,5.1389664]
[1770667733929,5.72885,2148.4,2145.7,0.58058494]
[1770667733930,5.7306,2147.7,2145.7,0.58058494]
[1770667734130,5.73152,2147.4,2146.0,0.00367073]
[1770667734329,5.7332,2146.8,2145.2,0.58058494]
[1770667734529,25.05972,2147.0,2145.2,0.58058494]
[1770667734734,5.96503,2147.2,2145.2,0.58058494]
[1770667734735,5.73056,2147.8,2145.3,0.58058494]
[1770667734938,0.00488726,2148.1,2145.7,0.58058494]
[1770667735128,5.73054,2147.8,2145.7,0.58058494]
[1770667735328,0.00488726,2148.1,2146.1,0.60925456]
[1770667737231,0.00488726,2148.1,2146.2,0.58599647]
[1770667737429,0.00488726,2148.1,2146.3,0.58599647]
[1770667738338,5.11407288,2148.0,2146.3,0.58599647]
[1770667738834,5.11407288,2147.7,2146.3,0.58599647]
[1770667739134,0.00488726,2148.1,2146.3,0.58599647]
[1770667739135,0.00991722,2147.8,2146.3,0.58599647]
[1770667739336,0.00991722,2147.7,2146.3,0.58599647]
[1770667739840,5.11407288,2147.6,2146.3,0.58599647]
[1770667740441,5.1239901,2147.3,2146.3,0.58599647]
[1770667740641,0.00991722,2147.7,2146.3,0.58599647]
[1770667741440,0.04465258,2147.4,2146.3,0.58599647]
[1770667742532,0.04465258,2147.2,2146.3,0.58599647]
[1770667743143,0.04465258,2147.2,2146.0,0.55825865]
[1770667743443,5.17358544,2147.1,2146.0,0.55825865]
[1770667743743,0.05951256,2147.0,2146.0,0.55825865]
[1770667744444,5.11407288,2146.6,2146.0,0.55825865]
[1770667746040,5.12407288,2146.6,2146.0,0.55825865]
[1770667746443,5.11407288,2146.3,2145.8,0.54508051]
[1770667746745,5.11407288,2146.3,2145.7,0.00475699]
[1770667746746,0.00423101,2146.3,2145.7,0.5498375]
[1770667747043,5.11407288,2146.2,2145.7,0.5498375]
[1770667747737,5.11407288,2146.2,2145.0,0.54508051]
[1770667747738,5.67454266,2146.2,2145.0,0.54508051]
[1770667747943,0.56046978,2146.2,2145.0,0.54508051]
[1770667748844,0.56046978,2146.2,2145.0,0.55066045]
[1770667749346,5.67454266,2146.2,2145.0,0.55066045]
[1770667749550,0.56046978,2146.2,2145.0,0.55066045]
[1770667749943,5.67454266,2146.2,2145.0,0.55066045]
[1770667750145,0.56046978,2146.2,2145.2,0.54508051]
[1770667750645,0.00423101,2146.3,2145.4,0.54508051]
[1770667750846,5.11407288,2146.2,2145.4,0.54508051]
[1770667751247,0.56046978,2146.1,2145.4,0.54508051]
[1770667751548,5.11407288,2145.9,2145.4,0.54508051]
[1770667751742,0.56470079,2146.3,2145.4,0.54508051]
[1770667751949,5.11407288,2146.1,2145.4,0.54508051]
[1770667753448,0.56046978,2147.4,2145.5,5.73631]
[1770667753648,0.56046978,2147.4,2146.2,0.54508051]
[1770667753849,0.57046978,2147.4,2146.4,0.54508051]
[1770667754049,0.56046978,2147.4,2145.9,0.54508051]
[1770667754348,0.56046978,2147.2,2145.9,0.54508051]
[1770667754544,0.56472046,2147.2,2146.1,0.54508051]
[1770667754942,0.56046978,2147.0,2146.1,0.54508051]
[1770667755147,0.56046978,2147.9,2146.6,0.54508051]
[1770667755348,0.56046978,2147.7,2146.2,5.29560692]
[1770667755546,0.56046978,2147.7,2146.1,0.54508051]
[1770667755849,0.56046978,2147.7,2145.9,0.54508051]
[1770667756051,0.56046978,2147.0,2145.9,0.54508051]
[1770667756242,0.56630873,2147.0,2145.9,0.54866412]
[1770667756443,0.56046978,2146.8,2145.9,0.54866412]
[1770667756643,0.00583895,2147.0,2146.1,0.54508051]
[1770667756845,0.00583895,2147.0,2146.3,0.54508051]
[1770667757046,0.56630873,2147.0,2146.3,0.54508051]
[1770667757249,0.56472046,2146.9,2146.3,0.54508051]
[1770667757447,0.00583895,2147.0,2144.6,2.05879586]
[1770667757448,0.56046978,2145.9,2144.6,2.05879586]
[1770667757649,0.00425068,2145.3,2144.5,0.54508051]
[1770667757857,0.19760557,2146.2,2144.5,0.54508051]
[1770667758354,0.19760557,2146.2,2144.7,0.54508051]
[1770667758555,0.20277681,2146.2,2144.7,0.55005423]
[1770667758864,0.19760557,2146.0,2144.7,0.55005423]
[1770667759049,0.00517124,2146.2,2144.9,0.56451186]
[1770667759249,0.19663107,2146.1,2144.9,0.56451186]
[1770667759448,0.20088175,2146.1,2144.9,0.56451186]
[1770667759851,0.00425068,2145.8,2144.9,0.56451186]
[1770667760046,0.19663107,2146.1,2144.9,0.56451186]
[1770667760359,0.00425068,2146.0,2144.9,0.56451186]
[1770667760760,0.20661753,2146.0,2144.9,0.56451186]
[1770667761255,0.20236685,2146.0,2144.9,0.56451186]
[1770667761459,0.20661753,2146.0,2144.9,0.56451186]
[1770667761855,0.20236685,2146.0,2144.9,0.56451186]
[1770667762052,0.00425068,2145.8,2144.9,0.56451186]
[1770667762357,0.20236685,2146.0,2144.9,0.56451186]
[1770667762657,0.20236685,2146.0,2144.5,5.73911]
[1770667762658,5.73595,2145.7,2143.9,1.37808026]
[1770667762855,0.00517124,2146.2,2142.9,0.58029927]
[1770667762856,2.86661447,2144.2,2142.9,0.58029927]
[1770667763058,2.86661447,2144.2,2142.6,0.54378808]
[1770667763059,0.53054106,2144.0,2142.6,0.54378808]
[1770667763556,0.53054106,2144.0,2141.9,15.09062641]
[1770667763557,0.53054106,2144.0,2142.7,7.02189002]
[1770667763746,0.53460126,2144.0,2142.7,0.54724924]
[1770667763945,0.53054106,2143.6,2142.7,0.54724924]
[1770667764150,0.53054106,2143.6,2142.9,0.54378808]
[1770667765057,0.53054106,2143.2,2142.7,0.00346116]
[1770667765761,0.53054106,2143.2,2142.3,0.54378808]
[1770667765961,0.53479174,2143.2,2142.4,6.47810194]
[1770667766560,0.53054106,2143.0,2142.4,6.47810194]
[1770667766760,0.53054106,2143.0,2142.4,6.48401537]
[1770667766962,0.00425068,2142.8,2142.4,6.48401537]
[1770667767365,0.05052055,2142.0,2140.3,0.55503899]
[1770667767561,0.05052055,2141.7,2140.3,0.55503899]
[1770667768062,0.05477123,2141.6,2140.3,0.55503899]
[1770667768268,0.05052055,2141.6,2140.3,0.55503899]
[1770667768456,0.05475236,2141.6,2140.3,0.00566869]
[1770667768760,0.05052055,2141.2,2139.6,0.55503899]
[1770667769164,0.05477123,2140.9,2139.6,0.55503899]
[1770667769559,0.05477123,2140.9,2139.6,0.5600056]
[1770667771069,5.74726,2141.5,2139.6,0.5600056]
[1770667771070,0.05311707,2141.2,2139.6,0.5600056]
[1770667771259,0.05311707,2141.2,2139.6,0.55533677]
[1770667771659,0.06410891,2141.0,2139.6,0.55533677]
[1770667771868,0.05985823,2141.0,2139.6,0.55533677]
[1770667772258,0.00425068,2140.9,2139.6,0.55533677]
[1770667772462,0.06410891,2140.9,2139.6,0.55533677]
[1770667773365,0.06145661,2140.0,2138.4,0.54957096]
[1770667774164,0.07173233,2140.0,2138.4,0.55330934]
[1770667774358,0.06748165,2140.0,2138.4,0.55330934]
[1770667774764,0.00425068,2139.9,2138.4,0.55330934]
[1770667774971,0.06570729,2139.9,2138.4,0.55330934]
[1770667775358,0.00602504,2140.0,2138.4,0.55330934]
[1770667775359,0.05989438,2139.5,2138.4,0.55330934]
[1770667775963,0.06414506,2139.2,2138.4,0.55330934]
[1770667776171,0.05989438,2139.9,2138.4,0.55330934]
[1770667776370,0.06414506,2139.7,2138.4,0.55330934]
[1770667776670,0.00602504,2140.0,2138.8,0.55035208]
[1770667776872,0.06591942,2140.0,2138.8,0.55035208]
[1770667777171,0.05989438,2139.8,2138.8,0.55035208]
[1770667778065,0.00602504,2140.0,2136.1,0.5441386]
[1770667778066,0.07232134,2138.0,2136.1,0.5441386]
[1770667778269,0.07232134,2138.7,2136.4,0.5441386]
[1770667778567,0.07232134,2138.5,2136.6,0.5441386]
[1770667778762,0.07232134,2138.2,2136.1,0.5441386]
[1770667779169,0.00425068,2138.1,2136.3,0.5441386]
[1770667779374,0.07968996,2138.0,2136.3,0.5441386]
[1770667779574,0.00425068,2137.8,2136.3,0.5441386]
[1770667779874,0.07968996,2137.8,2136.3,0.5441386]
[1770667780068,0.00425068,2137.7,2136.3,0.5441386]
[1770667780464,0.07968996,2137.8,2136.3,0.5441386]
[1770667780667,0.00425068,2137.7,2136.3,0.5441386]
[1770667781069,0.07968996,2137.8,2136.3,0.5441386]
[1770667781273,0.07968996,2138.1,2136.5,0.54378808]
[1770667782375,0.00605904,2138.2,2136.7,0.54378808]
[1770667782571,0.00605904,2138.2,2136.9,0.54378808]
[1770667783467,0.00605904,2138.2,2137.4,0.23407]
[1770667783670,0.10138868,2139.2,2137.5,0.54378808]
[1770667784372,0.00425068,2138.7,2137.5,0.54378808]
[1770667784575,0.00425068,2138.7,2136.3,25.6491]
[1770667784576,0.10138868,2137.1,2136.1,0.0040893]
[1770667784872,5.75835,2137.4,2134.4,5.76624]
[1770667784873,0.10138868,2136.2,2135.0,0.54378808]
[1770667785070,3.90528434,2137.0,2135.0,0.54378808]
[1770667785272,0.00425068,2136.7,2135.2,0.54378808]
[1770667785471,0.10138868,2136.9,2135.2,0.54378808]
[1770667785676,0.10654164,2136.9,2135.2,0.54930944]
[1770667785975,0.00425068,2136.6,2135.2,0.54930944]
[1770667786577,0.09626424,2136.6,2135.2,0.54930944]
[1770667787276,0.00425068,2136.1,2135.2,0.54930944]
[1770667787467,0.09626424,2136.4,2135.2,0.54930944]
[1770667788081,0.00425068,2136.0,2135.2,0.54930944]
[1770667788974,0.00425068,2135.7,2135.2,0.54930944]
[1770667789173,0.09626424,2136.4,2135.2,0.54930944]
[1770667789375,0.00425068,2136.0,2135.2,0.54930944]
[1770667789573,0.11068196,2136.7,2135.2,0.54930944]
[1770667789878,0.00425068,2136.7,2135.4,0.54561428]
[1770667790574,0.00425068,2136.4,2135.4,0.54561428]
[1770667790976,0.00425068,2136.3,2135.4,0.54561428]
[1770667791166,0.00515296,2136.9,2135.6,0.54561428]
[1770667791575,0.11418656,2136.5,2135.2,0.55113564]
[1770667791877,0.34834656,2136.6,2135.2,0.55113564]
[1770667792072,0.00425068,2136.3,2135.2,0.55113564]
[1770667793975,0.00425068,2136.0,2135.2,0.55113564]
[1770667794178,0.35143828,2136.4,2135.2,0.55113564]
[1770667794372,0.23418,2136.4,2135.2,0.55113564]
[1770667794685,0.00425068,2136.0,2135.2,0.55113564]
[1770667795172,0.11725828,2136.7,2135.2,0.55113564]
[1770667795979,0.11725828,2136.7,2135.4,0.54561428]
[1770667796178,0.00515296,2136.9,2135.4,0.54561428]
[1770667796678,0.00515296,2136.9,2135.6,0.54561428]
[1770667798472,0.00515296,2136.9,2135.8,0.54561428]
[1770667798673,0.00515296,2136.9,2136.0,0.54561428]
[1770667799277,0.00515296,2136.9,2136.2,0.54561428]
[1770667799477,0.11930074,2137.6,2136.2,0.54561428]
[1770667799679,0.12735043,2137.9,2136.2,0.54561428]
[1770667800179,0.12735043,2137.9,2136.4,0.54561428]
[1770667800575,0.13315754,2137.9,2136.4,0.54561428]
[1770667800978,0.12735043,2137.7,2136.4,0.54561428]
[1770667801177,0.13004199,2137.3,2136.4,0.54561428]
[1770667801377,0.13004199,2137.1,2135.8,0.54561428]
[1770667801576,0.23409,2137.2,2135.8,0.54561428]
[1770667801777,0.36413199,2137.2,2135.8,0.54561428]
[1770667802474,0.36415199,2137.0,2135.8,0.54561428]
[1770667803080,0.23411,2137.0,2135.8,0.54561428]
[1770667803883,0.11847118,2136.9,2135.8,0.54561428]
[1770667804486,0.23411,2137.0,2135.8,0.54561428]
[1770667804995,0.11847118,2137.2,2135.8,0.54561428]
[1770667805200,0.35634307,2137.5,2136.0,0.54561428]
[1770667805501,3.96311103,2137.4,2136.0,0.54561428]
[1770667805701,0.35634307,2137.5,2136.2,0.54561428]
[1770667805995,0.12228307,2137.6,2136.4,0.54561428]
[1770667806193,0.12228307,2137.4,2136.4,0.54561428]
[1770667807300,3.97814123,2137.3,2136.4,0.54561428]
[1770667807496,0.12228307,2137.4,2136.4,0.54561428]
[1770667807697,0.14039227,2137.2,2136.4,0.54561428]
[1770667808396,2.89895244,2137.6,2136.4,0.54561428]
[1770667808596,3.99049546,2137.5,2136.4,0.54561428]
[1770667808894,3.99049546,2137.4,2136.4,0.54561428]
[1770667809097,40.38524883,2137.8,2136.4,0.54561428]
[1770667809098,2.75856017,2137.7,2136.4,0.54561428]
[1770667809398,3.97651816,2137.6,2136.4,0.54561428]
[1770667809598,3.97651816,2137.5,2136.4,0.54561428]
[1770667809799,3.97651816,2137.4,2136.4,0.54561428]
[1770667810000,0.15885159,2137.5,2136.4,0.54561428]
[1770667810296,4.21101047,2137.4,2136.4,0.54561428]
[1770667810501,0.15885159,2137.7,2136.4,0.54561428]
[1770667810502,3.97694047,2137.3,2136.4,0.54561428]
[1770667810702,0.15885159,2137.6,2136.4,0.54561428]
[1770667810902,3.97769114,2137.5,2136.4,0.54561428]
[1770667811102,3.97769114,2137.4,2136.4,0.54561428]
[1770667811302,3.97769114,2137.3,2136.4,0.54561428]
[1770667811497,2.91741176,2137.6,2136.4,0.54561428]
[1770667811696,3.97856855,2137.5,2136.4,0.54561428]
[1770667811899,3.97856855,2137.4,2136.4,0.54561428]
[1770667812199,0.17101716,2136.3,2135.4,0.54561428]
[1770667812400,4.01785561,2136.2,2135.4,0.54561428]
[1770667812705,0.17585521,2136.3,2135.4,0.54561428]
[1770667812904,4.01761711,2136.2,2135.4,0.54561428]
[1770667813107,0.17585521,2136.3,2135.4,0.54561428]
[1770667813405,4.01761967,2136.2,2135.4,0.54561428]
[1770667813600,4.01761967,2136.1,2135.4,0.54561428]
[1770667813902,0.1753855,2136.2,2135.4,0.12898436]
[1770667814100,0.56225638,2136.0,2135.2,0.00552136]
[1770667814302,4.02070589,2135.9,2135.2,0.55113564]
[1770667814502,0.56225638,2136.2,2135.2,0.00552136]
[1770667814701,0.56225638,2135.7,2134.9,0.54561428]
[1770667815107,40.15121883,2136.2,2134.9,0.54561428]
[1770667815108,2.75856017,2136.2,2135.2,0.23431]
[1770667815306,0.00483805,2136.3,2135.3,0.54561428]
[1770667815501,4.01090553,2136.2,2135.3,0.54561428]
[1770667815811,0.00483805,2136.3,2135.3,0.54890475]
[1770667816903,0.00483805,2136.3,2135.5,0.54561428]
[1770667817103,0.56225638,2137.0,2135.7,0.54561428]
[1770667817304,0.00908873,2136.7,2135.7,0.54561428]
[1770667817703,0.56225638,2137.0,2135.7,0.54561428]
[1770667817913,4.01055543,2136.9,2135.7,0.54561428]
[1770667818213,0.56748835,2137.0,2135.7,0.54561428]
[1770667818508,4.01092908,2136.9,2135.7,0.54561428]
[1770667818814,4.01092908,2136.8,2135.7,0.54561428]
[1770667819005,4.57318546,2136.8,2135.7,0.54561428]
[1770667819205,2.75856017,2137.2,2136.1,0.5531996]
[1770667819409,2.75856017,2137.9,2136.6,0.23416]
[1770667819611,0.57479084,2137.7,2136.7,0.55197408]
[1770667819807,4.01048553,2137.6,2136.7,0.55197408]
[1770667820008,0.57479084,2137.7,2136.7,0.55197408]
[1770667820310,4.0103559,2137.6,2136.7,0.55197408]
[1770667820510,0.57866174,2137.7,2136.7,0.55197408]
[1770667820715,4.00828191,2137.6,2136.7,0.55197408]
[1770667821014,0.57866174,2137.7,2136.7,0.55197408]
[1770667821015,0.0038709,2137.7,2136.7,0.55197408]
[1770667823306,0.57866174,2137.7,2136.7,0.55197408]
[1770667823513,0.57479084,2137.5,2136.2,0.55197408]
[1770667824912,0.57479084,2137.3,2136.2,0.55197408]
[1770667825118,4.00018645,2137.2,2136.4,0.55197408]
[1770667825312,0.57479084,2137.6,2136.6,0.55197408]
[1770667825508,4.00059969,2137.5,2136.6,0.55197408]
[1770667825706,4.00059969,2137.4,2136.6,0.55197408]
[1770667825913,0.57479084,2137.6,2136.6,0.55197408]
[1770667826113,4.00067794,2137.5,2136.6,0.55197408]
[1770667826313,4.00067794,2137.4,2136.6,0.55197408]
[1770667826611,0.57479084,2137.6,2136.6,0.55197408]
[1770667826811,4.57559486,2137.5,2136.6,0.55197408]
[1770667827011,4.00080402,2137.4,2136.6,0.55197408]
[1770667828214,4.57559486,2137.4,2136.6,0.55197408]
[1770667828417,0.57479084,2137.4,2136.6,0.55197408]
[1770667828611,0.57479084,2137.6,2136.6,0.55197408]
[1770667828819,0.57479084,2137.4,2136.6,0.55197408]
[1770667830317,5.76199,2136.0,2134.7,1.17548488]
[1770667830518,2.75856017,2135.6,2134.7,0.58158511]
[1770667830714,2.75856017,2135.7,2134.7,0.58158511]
[1770667831115,4.03116084,2135.7,2134.8,0.58158511]
[1770667831311,6.78972101,2135.6,2134.8,0.58655347]
[1770667831615,4.03116084,2135.5,2134.8,0.58655347]
[1770667831819,4.03116084,2135.4,2134.8,0.58655347]
[1770667832015,4.03116084,2135.3,2135.2,1.16639615]
[1770667832316,4.03116084,2135.3,2134.8,0.58655347]
[1770667832616,2.76696496,2135.7,2134.8,0.58655347]
[1770667832817,0.00275029,2135.5,2134.8,0.00496836]
[1770667833116,2.75856017,2135.5,2134.8,0.58517833]
[1770667833320,4.54044994,2135.4,2135.0,0.55854996]
[1770667833520,2.76421467,2135.7,2135.0,0.55854996]
[1770667833723,4.53642443,2135.6,2135.0,0.55854996]
[1770667833915,4.54642443,2135.5,2135.0,0.55854996]
[1770667834220,4.53642443,2135.4,2135.0,0.55854996]
[1770667834415,0.01,2135.5,2135.0,0.55854996]
[1770667834721,4.63781142,2135.4,2135.0,0.55854996]
[1770667834923,0.01,2135.5,2135.0,0.55854996]
[1770667835216,4.63780866,2135.4,2135.0,0.55854996]
[1770667835417,0.01,2135.5,2135.0,0.55854996]
[1770667835608,4.61266294,2135.4,2135.0,0.55854996]
[1770667835814,0.01,2135.5,2135.0,0.55854996]
[1770667836013,4.61260121,2135.4,2134.8,0.00496836]
[1770667836215,0.01,2135.5,2134.9,0.56605502]
[1770667838622,0.0056545,2135.7,2135.0,0.56633492]
[1770667839123,0.0056545,2135.7,2135.1,6.09602305]
[1770667839322,0.0056545,2135.7,2135.2,0.5668473]
[1770667840322,0.0056545,2135.7,2135.3,0.5668473]
[1770667840513,0.0056545,2135.7,2134.8,0.57181566]
[1770667840717,4.56678802,2135.6,2134.8,0.57181566]
[1770667840917,0.0056545,2135.7,2134.8,0.57181566]
[1770667841419,0.02947561,2136.1,2135.1,0.56851782]
[1770667841622,2.78469475,2136.4,2135.1,0.56851782]
[1770667841825,4.56547118,2136.3,2135.1,0.56851782]
[1770667842119,4.56547118,2136.2,2135.1,0.56851782]
[1770667842319,4.56547118,2136.1,2135.1,0.56851782]
[1770667842518,4.56547118,2136.1,2134.8,0.00496836]
[1770667842519,0.00478425,2136.1,2135.3,0.56851782]
[1770667843023,4.56533282,2136.0,2135.3,0.56851782]
[1770667843224,0.00478425,2136.1,2135.3,0.56851782]
[1770667843423,4.56520802,2136.0,2135.3,0.56851782]
[1770667843625,0.00478425,2136.1,2135.3,0.56851782]
[1770667843825,4.56516651,2136.0,2135.3,0.56851782]
[1770667844024,0.00478425,2136.1,2135.3,0.56851782]
[1770667844225,4.56455816,2136.0,2135.3,0.56851782]
[1770667844425,0.00478425,2136.1,2135.7,11.42532132]
[1770667844622,4.56520739,2136.0,2135.3,0.57360934]
[1770667844824,4.56520739,2135.9,2135.3,0.57360934]
[1770667845024,0.00478425,2136.1,2135.3,0.57360934]
[1770667845326,4.5653318,2136.0,2135.3,0.57360934]
[1770667845529,0.016975,2136.0,2135.6,5.52968813]
[1770667845726,4.54287624,2135.9,2135.3,0.57360934]
[1770667845925,0.016975,2136.0,2135.3,0.57360934]
[1770667846121,4.54293548,2135.9,2135.3,0.57360934]
[1770667846323,0.016975,2136.0,2135.3,0.57360934]
[1770667846525,0.00478425,2136.1,2135.5,0.57309761]
[1770667846825,4.54230488,2136.0,2135.5,0.57309761]
[1770667847030,0.02175925,2136.1,2135.6,0.11623954]
[1770667847222,4.54230777,2136.0,2135.6,0.11623954]
[1770667847529,0.02175925,2136.1,2135.6,0.11623954]
[1770667847732,4.51994384,2136.0,2135.6,0.11623954]
[1770667848032,0.02175925,2136.1,2135.6,0.57205562]
[1770667848033,0.00478425,2136.1,2135.6,0.57205562]
[1770667848428,0.00478425,2136.1,2135.7,0.57205562]
[1770667848728,0.00478425,2136.1,2134.8,0.00496836]
[1770667848729,0.02384323,2136.1,2135.2,0.57205562]
[1770667849325,4.54065016,2136.0,2135.2,6.10174375]
[1770667849521,0.01975544,2136.0,2135.2,0.57205562]
[1770667849923,0.01975544,2136.0,2135.2,6.10174375]
[1770667850129,4.54230199,2135.9,2135.2,0.57205562]
[1770667850324,0.02121238,2135.9,2135.2,0.57205562]
[1770667851231,4.52491228,2135.8,2135.2,0.57205562]
[1770667851432,0.02121238,2135.9,2135.2,0.57205562]
[1770667851632,0.02121238,2135.9,2135.3,0.57628444]
[1770667851932,0.00478425,2136.1,2135.3,0.57628444]
[1770667852131,4.52526742,2136.0,2135.3,0.57628444]
[1770667852327,4.52526742,2135.9,2135.3,0.57628444]
[1770667852526,0.01684252,2136.1,2135.3,0.57628444]
[1770667852732,4.5127432,2136.0,2135.3,0.57628444]
[1770667852932,4.5127432,2135.9,2135.3,0.57628444]
[1770667853134,0.01684252,2136.1,2135.3,0.57628444]
[1770667853435,0.00478425,2136.1,2135.5,0.57720642]
[1770667853636,2.77478689,2136.6,2135.6,0.5748143]
[1770667853840,4.51534284,2136.5,2135.8,0.5748143]
[1770667854135,4.51534284,2136.4,2135.8,0.5748143]
[1770667854338,4.51534284,2136.3,2135.9,0.5748143]
[1770667854531,0.0060074,2136.3,2135.9,0.5748143]
[1770667854837,0.0060074,2136.3,2136.1,5.52968813]
[1770667855633,0.01555196,2136.5,2136.1,5.52968813]
[1770667855840,7.3114225,2136.5,2135.1,0.58231358]
[1770667856041,4.52108365,2136.4,2135.7,0.58231358]
[1770667856339,7.29587054,2136.4,2135.7,0.58231358]
[1770667856536,7.29976842,2136.4,2135.9,6.09644975]
[1770667856742,7.29976842,2136.4,2135.9,0.58231358]
[1770667857040,4.52108365,2136.3,2136.0,5.51413617]
[1770667857240,4.52108365,2136.2,2136.0,5.51413617]
[1770667857540,4.52108365,2136.1,2136.0,5.50812886]
[1770667858133,2.77868477,2136.4,2136.0,5.50812886]
[1770667858439,7.29587054,2136.3,2136.0,5.50812886]
[1770667858641,4.52108365,2136.2,2136.0,6.09350699]
[1770667858841,5.35030227,2136.8,2136.1,0.58537813]
[1770667859041,5.35030227,2137.0,2136.1,0.58537813]
[1770667859532,5.35030227,2137.2,2136.1,0.58537813]
[1770667860043,5.35503183,2137.2,2136.1,0.58537813]
[1770667860243,5.35030227,2137.1,2136.1,0.58537813]
[1770667860445,0.00472956,2137.2,2136.3,0.58520971]
[1770667860639,0.00472956,2137.2,2136.5,0.58520971]
[1770667860840,5.35030227,2137.9,2136.5,0.58520971]
[1770667861445,5.35030227,2138.3,2136.7,0.58545413]
[1770667861651,5.35030227,2138.5,2136.9,0.58545413]
[1770667861849,5.35030227,2138.4,2137.6,0.11623954]
[1770667862151,5.35030227,2138.4,2137.4,0.58545413]
[1770667862349,5.35446979,2138.5,2137.4,0.58545413]
[1770667863148,0.00416752,2138.5,2137.4,0.58545413]
[1770667863349,30.28816752,2138.5,2137.4,0.58545413]
[1770667864944,8.88264143,2139.2,2137.6,0.58384099]
[1770667865147,30.279,2139.1,2137.6,0.58384099]
[1770667865549,3.12910143,2139.2,2137.6,0.58384099]
[1770667865751,33.40610143,2139.2,2137.6,0.58384099]
[1770667865953,33.41020829,2139.2,2137.6,0.58384099]
[1770667869955,0.23392,2138.8,2137.6,0.58384099]
[1770667871851,0.00410686,2139.2,2137.6,0.58384099]
[1770667872060,4.11318656,2139.1,2137.6,0.58384099]
[1770667872256,4.11318656,2139.0,2137.6,0.58384099]
[1770667872456,0.00410686,2139.2,2137.6,0.58384099]
[1770667872662,4.11174006,2139.1,2137.6,0.58384099]
[1770667872961,4.11174006,2139.0,2137.6,0.58384099]
[1770667873161,0.00410686,2139.2,2137.6,0.58384099]
[1770667873352,4.11156748,2139.1,2137.6,0.58384099]
[1770667873558,4.11156748,2139.0,2137.6,0.58384099]
[1770667873752,0.00410686,2139.2,2137.6,0.58384099]
[1770667873957,0.23389,2139.0,2137.6,0.58384099]
[1770667874157,4.11081446,2138.9,2137.6,0.58384099]